bitfinex/quotes_BTCUSD_20210101
["timestamp","ask_amount","ask_price","bid_price","bid_amount"]
[1609519764724,1.01319507,29338.0,29337.0,0.16376934]
[1609519766224,0.76319507,29338.0,29337.0,0.16376934]
[1609519766528,0.75819507,29338.0,29337.0,0.15876934]
[1609519769752,0.75819507,29338.0,29337.0,0.15376934]
[1609519770996,0.94819507,29338.0,29337.0,0.15376934]
[1609519773002,0.94819507,29338.0,29336.0,0.6337]
[1609519773403,0.75819507,29338.0,29337.0,0.364748]
[1609519774600,0.73819507,29338.0,29337.0,0.364748]
[1609519775512,0.73319507,29338.0,29337.0,0.364748]
[1609519782249,0.73319507,29338.0,29337.0,0.114748]
[1609519786041,0.72319507,29338.0,29337.0,0.114748]
[1609519790566,0.72319507,29338.0,29337.0,0.51993439]
[1609519790966,0.72319507,29338.0,29337.0,0.61993439]
[1609519793562,0.72319507,29338.0,29337.0,0.73468339]
[1609519794862,0.72319507,29338.0,29337.0,0.58873991]
[1609519795065,0.90819507,29338.0,29337.0,0.58873991]
[1609519798302,1.27294407,29338.0,29337.0,0.22399091]
[1609519799997,0.90819507,29338.0,29337.0,0.22399091]
[1609519800499,1.27294407,29338.0,29337.0,0.22399091]
[1609519800984,0.90819507,29338.0,29337.0,0.22399091]
[1609519802184,0.90819507,29338.0,29337.0,0.58873991]
[1609519803292,1.27294407,29338.0,29337.0,0.22399091]
[1609519803519,1.35070607,29338.0,29337.0,0.22399091]
[1609519806823,1.27294407,29338.0,29337.0,0.22399091]
[1609519807226,0.077762,29337.0,29335.0,0.3793773]
[1609519807422,0.17,29336.0,29335.0,0.3793773]
[1609519807626,0.17,29336.0,29335.0,0.4793773]
[1609519808027,0.17,29336.0,29335.0,0.3793773]
[1609519808224,0.17,29336.0,29335.0,0.4793773]
[1609519808626,0.17,29336.0,29335.0,0.3793773]
[1609519809747,0.71960378,29338.0,29335.0,0.3793773]
[1609519810944,0.71960378,29338.0,29336.0,0.364749]
[1609519811146,0.364749,29337.0,29336.0,0.135]
[1609519811446,0.71960378,29338.0,29336.0,0.499749]
[1609519811644,0.71960378,29338.0,29336.0,0.135]
[1609519811844,0.71960378,29338.0,29336.0,0.364749]
[1609519812247,0.71960378,29338.0,29335.0,0.2643773]
[1609519812549,0.71960378,29338.0,29336.0,0.364749]
[1609519813353,0.364749,29337.0,29335.0,0.2493773]
[1609519813548,0.504749,29337.0,29335.0,0.2493773]
[1609519813750,0.827762,29336.0,29335.0,0.2493773]
[1609519813948,0.48187559,29336.0,29335.0,0.2493773]
[1609519814147,0.77687559,29336.0,29335.0,0.2493773]
[1609519814548,0.673129,29336.0,29335.0,0.2493773]
[1609519815190,0.673129,29336.0,29335.0,0.31524918]
[1609519815498,0.595367,29336.0,29335.0,0.31524918]
[1609519816037,0.69792733,29336.0,29335.0,0.31524918]
[1609519816440,0.150367,29336.0,29335.0,0.31524918]
[1609519817039,0.380367,29336.0,29335.0,0.31524918]
[1609519817339,0.150367,29336.0,29335.0,0.31524918]
[1609519817537,0.46803095,29336.0,29335.0,0.31524918]
[1609519817943,0.364765,29336.0,29335.0,0.31524918]
[1609519819080,0.46782642,29336.0,29335.0,0.31524918]
[1609519819579,0.364765,29336.0,29335.0,0.31524918]
[1609519819879,0.524765,29336.0,29335.0,0.31524918]
[1609519820778,0.602527,29336.0,29335.0,0.31524918]
[1609519821479,0.70342043,29336.0,29335.0,0.31524918]
[1609519821881,0.602527,29336.0,29335.0,0.31524918]
[1609519822383,1.32047473,29336.0,29335.0,0.31524918]
[1609519826503,1.32047473,29336.0,29335.0,0.39771297]
[1609519826701,1.32047473,29336.0,29335.0,0.31524918]
[1609519829302,1.48547473,29336.0,29335.0,0.31524918]
[1609519829500,1.88547473,29336.0,29335.0,0.31524918]
[1609519829726,1.99477473,29336.0,29335.0,0.31524918]
[1609519830226,1.42977473,29336.0,29335.0,0.31524918]
[1609519830629,1.59477473,29336.0,29335.0,0.31524918]
[1609519831081,1.42977473,29336.0,29335.0,0.31524918]
[1609519831679,1.59477473,29336.0,29335.0,0.31524918]
[1609519832181,1.42977473,29336.0,29335.0,0.31524918]
[1609519832981,1.76157775,29336.0,29335.0,0.31524918]
[1609519833284,1.42977473,29336.0,29335.0,0.31524918]
[1609519833517,1.76157775,29336.0,29335.0,0.31524918]
[1609519833918,1.42977473,29336.0,29335.0,0.31524918]
[1609519834121,1.43142536,29336.0,29335.0,0.31524918]
[1609519834618,1.32212536,29336.0,29335.0,0.31524918]
[1609519834820,1.65392838,29336.0,29335.0,0.31524918]
[1609519835023,1.57616638,29336.0,29335.0,0.31524918]
[1609519835222,1.32212536,29336.0,29335.0,0.31524918]
[1609519835522,1.65392838,29336.0,29335.0,0.31524918]
[1609519837022,2.42537838,29336.0,29335.0,0.31524918]
[1609519837522,2.26037838,29336.0,29335.0,0.31524918]
[1609519838423,1.92857536,29336.0,29335.0,0.31524918]
[1609519839024,1.42857536,29336.0,29335.0,0.31524918]
[1609519839576,1.35081336,29336.0,29335.0,0.31524918]
[1609519839773,1.24436336,29336.0,29335.0,0.39758009]
[1609519840180,1.24436336,29336.0,29335.0,0.31524918]
[1609519840381,1.08436336,29336.0,29335.0,0.31524918]
[1609519841575,1.08254191,29336.0,29335.0,0.31524918]
[1609519843095,1.08254191,29336.0,29335.0,1.68001418]
[1609519843096,0.71959836,29336.0,29335.0,1.68001418]
[1609519843400,0.71959836,29336.0,29335.0,2.23501418]
[1609519843994,0.71959836,29336.0,29335.0,2.43501418]
[1609519844198,0.71959836,29336.0,29335.0,2.23501418]
[1609519845592,0.71959836,29336.0,29335.0,2.03501418]
[1609519846622,0.71959836,29336.0,29335.0,0.68001418]
[1609519847325,0.72155932,29336.0,29335.0,0.68001418]
[1609519848680,0.72155932,29336.0,29335.0,1.68001418]
[1609519848877,0.72155932,29336.0,29335.0,0.85001418]
[1609519852508,0.71655932,29336.0,29335.0,0.68001418]
[1609519855113,0.71655932,29336.0,29335.0,0.78358975]
[1609519855512,0.71655932,29336.0,29335.0,0.68001418]
[1609519856013,1.08132432,29336.0,29335.0,0.31524918]
[1609519857521,1.24632432,29336.0,29335.0,0.31524918]
[1609519857717,1.26632432,29336.0,29335.0,0.31524918]
[1609519858363,0.90155932,29336.0,29335.0,0.31524918]
[1609519858565,0.90155932,29336.0,29335.0,0.68001418]
[1609519858765,0.90155932,29336.0,29335.0,0.66501418]
[1609519858959,0.90155932,29336.0,29335.0,0.30024918]
[1609519859364,0.90155932,29336.0,29335.0,0.4016976]
[1609519859561,0.71655932,29336.0,29335.0,0.4016976]
[1609519859761,1.08132432,29336.0,29335.0,0.4016976]
[1609519860166,0.71655932,29336.0,29335.0,0.4016976]
[1609519861283,0.70655932,29336.0,29335.0,0.4016976]
[1609519861687,1.07132432,29336.0,29335.0,0.4016976]
[1609519861883,1.30632432,29336.0,29335.0,0.30024918]
[1609519862986,1.30632432,29336.0,29335.0,0.11462812]
[1609519863826,1.30632432,29336.0,29335.0,0.01275018]
[1609519864133,1.51908632,29336.0,29335.0,0.01275018]
[1609519864723,1.85088934,29336.0,29335.0,0.01275018]
[1609519864922,1.77312734,29336.0,29335.0,0.01275018]
[1609519865427,1.07235932,29336.0,29335.0,0.37751518]
[1609519865927,1.07235932,29336.0,29335.0,0.45957659]
[1609519866237,0.70235932,29336.0,29335.0,0.47908632]
[1609519866426,0.70235932,29336.0,29335.0,0.44352911]
[1609519866726,0.69235932,29336.0,29335.0,0.36150661]
[1609519866930,0.69235932,29336.0,29335.0,0.51650661]
[1609519867525,0.69235932,29336.0,29335.0,0.61819025]
[1609519867931,0.69235932,29336.0,29335.0,0.51650661]
[1609519868831,0.69235932,29336.0,29335.0,0.6196322]
[1609519869353,0.69235932,29336.0,29335.0,0.36150661]
[1609519870357,0.69235932,29336.0,29335.0,0.46228007]
[1609519872363,0.69235932,29336.0,29335.0,0.36150661]
[1609519872563,0.95735932,29336.0,29335.0,0.36150661]
[1609519873304,0.69235932,29336.0,29334.0,0.12345715]
[1609519873704,0.364765,29335.0,29334.0,0.12345715]
[1609519873904,0.69235932,29336.0,29334.0,0.12345715]
[1609519874105,0.364765,29335.0,29334.0,0.11845715]
[1609519874407,0.69235932,29336.0,29334.0,0.11845715]
[1609519874606,0.364765,29335.0,29334.0,0.11845715]
[1609519875512,0.364765,29335.0,29334.0,0.14069515]
[1609519875513,0.18,29335.0,29334.0,0.14069515]
[1609519875810,0.69235932,29336.0,29334.0,0.50546015]
[1609519876004,0.69235932,29336.0,29334.0,0.14069515]
[1609519876246,0.69167757,29336.0,29334.0,0.11845715]
[1609519876939,0.69167757,29336.0,29335.0,0.364765]
[1609519880196,0.69167757,29336.0,29334.0,0.11845715]
[1609519880898,0.33180302,29335.0,29334.0,0.48322215]
[1609519881095,0.23,29335.0,29334.0,0.11845715]
[1609519881298,0.23,29335.0,29334.0,0.48322215]
[1609519882446,0.33180302,29335.0,29334.0,0.48322215]
[1609519882753,0.69167757,29336.0,29335.0,0.364765]
[1609519883554,0.69167757,29336.0,29335.0,1.364765]
[1609519884749,0.69167757,29336.0,29335.0,1.564765]
[1609519885657,0.69167757,29336.0,29335.0,1.61115087]
[1609519886286,0.69167757,29336.0,29335.0,0.61115087]
[1609519886687,0.6892001,29336.0,29335.0,3.27615087]
[1609519886881,0.6892001,29336.0,29335.0,0.97615087]
[1609519887087,2.6892001,29336.0,29335.0,0.77615087]
[1609519893777,2.5892001,29336.0,29335.0,2.77615087]
[1609519893983,0.5892001,29336.0,29335.0,1.02115087]
[1609519894182,0.5892001,29336.0,29335.0,0.77615087]
[1609519894580,0.5892001,29336.0,29335.0,0.87615087]
[1609519897396,0.5892001,29336.0,29335.0,0.90961899]
[1609519897599,0.5892001,29336.0,29335.0,1.10961899]
[1609519897898,0.5892001,29336.0,29335.0,3.05961899]
[1609519898407,0.5892001,29336.0,29335.0,3.08961899]
[1609519900099,0.5892001,29336.0,29335.0,3.21643311]
[1609519900298,0.5892001,29336.0,29335.0,3.48643311]
[1609519901109,0.5892001,29336.0,29335.0,4.36703311]
[1609519901529,0.4594801,29336.0,29335.0,4.36703311]
[1609519901725,0.4594801,29336.0,29335.0,4.44703311]
[1609519901726,1.01e-05,29336.0,29335.0,4.44703311]
[1609519902124,1.01e-05,29336.0,29335.0,5.13543311]
[1609519904029,1.01e-05,29336.0,29335.0,5.46222523]
[1609519905325,1.01e-05,29336.0,29335.0,5.46182523]
[1609519905528,1.01e-05,29336.0,29335.0,5.66182523]
[1609519905826,1.01e-05,29336.0,29335.0,6.66182523]
[1609519906327,0.004954,29340.0,29339.0,0.66786762]
[1609519906524,0.004954,29340.0,29339.0,7.84170805]
[1609519906725,0.004954,29340.0,29339.0,8.92119916]
[1609519907037,3.0,29355.0,29350.0,0.29655726]
[1609519907333,3.0,29355.0,29351.0,0.022238]
[1609519907334,0.364765,29354.0,29351.0,0.022238]
[1609519907634,0.364765,29354.0,29352.0,0.135]
[1609519908524,0.5103,29356.0,29352.0,0.135]
[1609519908825,0.5103,29356.0,29353.0,0.364765]
[1609519909725,0.7826,29359.0,29353.0,0.364765]
[1609519909925,0.46228634,29360.0,29353.0,0.364765]
[1609519910122,0.46228634,29360.0,29354.0,0.022238]
[1609519910730,0.00148876,29359.0,29354.0,0.022238]
[1609519911031,0.00148876,29359.0,29355.0,0.08]
[1609519911230,0.0017962,29359.0,29355.0,0.08]
[1609519911738,0.0017962,29359.0,29356.0,0.20059]
[1609519912732,0.364765,29358.0,29356.0,0.20059]
[1609519912934,0.36507244,29358.0,29356.0,0.20059]
[1609519913230,0.00030744,29358.0,29357.0,0.364765]
[1609519913431,0.0017962,29359.0,29356.0,0.20059]
[1609519914035,0.09998125,29359.0,29356.0,0.20059]
[1609519914336,0.09498125,29359.0,29357.0,0.364765]
[1609519915040,0.09498125,29359.0,29358.0,0.022238]
[1609519915237,0.2681,29360.0,29359.0,0.364765]
[1609519916289,0.37036192,29360.0,29359.0,0.364765]
[1609519916893,0.2681,29360.0,29359.0,0.364765]
[1609519917088,0.2423,29360.0,29359.0,0.364765]
[1609519917494,0.005,29360.0,29359.0,0.364765]
[1609519918695,0.51050087,29361.0,29359.0,0.364765]
[1609519918896,0.5102,29361.0,29360.0,0.29936117]
[1609519919395,0.5052,29361.0,29360.0,0.29936117]
[1609519921557,0.5065137,29361.0,29360.0,0.29936117]
[1609519921967,0.8712787,29361.0,29360.0,0.29936117]
[1609519922167,0.8712787,29361.0,29357.0,0.08]
[1609519922374,0.151786,29360.0,29355.0,0.08]
[1609519922570,0.4523861,29360.0,29354.0,0.30828284]
[1609519922774,0.4523861,29360.0,29350.0,0.9033615]
[1609519922775,0.14,29359.0,29350.0,0.9033615]
[1609519923070,0.364765,29358.0,29350.0,0.9033615]
[1609519923462,0.66566597,29358.0,29350.0,0.9033615]
[1609519923818,0.51040001,29354.0,29350.0,0.2126615]
[1609519924012,0.364765,29353.0,29350.0,0.2126615]
[1609519924206,0.165,29352.0,29350.0,0.2126615]
[1609519924506,0.151786,29351.0,29350.0,0.2126615]
[1609519925202,0.151786,29351.0,29346.0,0.7235]
[1609519926105,0.151786,29351.0,29341.0,0.2833]
[1609519926303,0.151786,29351.0,29342.0,1.1205]
[1609519926606,0.364765,29348.0,29342.0,1.1205]
[1609519926800,0.518155,29348.0,29342.0,1.1205]
[1609519927006,0.15,29347.0,29342.0,0.6515]
[1609519927311,0.51040001,29349.0,29343.0,0.364765]
[1609519927503,0.50540001,29349.0,29343.0,0.364765]
[1609519927710,1.1492,29353.0,29342.0,0.6515]
[1609519928105,1.1492,29353.0,29343.0,0.364765]
[1609519928312,1.1492,29353.0,29342.0,1.68496812]
[1609519928515,1.1492,29353.0,29343.0,1.0]
[1609519928816,0.364765,29352.0,29343.0,1.0]
[1609519929823,0.364765,29352.0,29342.0,0.673738]
[1609519930228,0.364765,29352.0,29342.0,0.66000694]
[1609519930424,1.1488,29353.0,29342.0,0.66000694]
[1609519930930,1.1488,29353.0,29343.0,0.364765]
[1609519931133,1.1388,29353.0,29344.0,0.03346812]
[1609519931432,0.6891,29355.0,29345.0,0.022238]
[1609519931937,0.73500087,29357.0,29346.0,1.47823312]
[1609519932127,0.73500087,29357.0,29347.0,0.225]
[1609519932434,0.00129066,29355.0,29348.0,0.387003]
[1609519932933,0.00129066,29355.0,29348.0,0.467003]
[1609519933132,0.5103,29353.0,29349.0,0.364765]
[1609519933734,0.5103,29353.0,29350.0,0.08]
[1609519934129,0.364765,29352.0,29350.0,0.08]
[1609519934528,0.5103,29353.0,29350.0,0.08]
[1609519936925,0.5103,29353.0,29351.0,0.364765]
[1609519937126,0.5103,29353.0,29350.0,0.08]
[1609519937527,0.5103,29353.0,29351.0,0.364765]
[1609519937928,0.5103,29353.0,29352.0,6.617003]
[1609519938141,6.6e-07,29355.0,29353.0,1.0]
[1609519938333,6.6e-07,29355.0,29354.0,0.6693705]
[1609519938646,6.6e-07,29355.0,29354.0,1.70283862]
[1609519938890,6.6e-07,29355.0,29354.0,2.74880556]
[1609519939097,6.6e-07,29355.0,29354.0,2.94880556]
[1609519939290,6.6e-07,29355.0,29354.0,3.11031624]
[1609519939481,6.6e-07,29355.0,29354.0,2.91031624]
[1609519939679,6.6e-07,29355.0,29354.0,3.38181624]
[1609519940088,6.6e-07,29355.0,29354.0,3.30030556]
[1609519940282,6.6e-07,29355.0,29354.0,3.50030556]
[1609519940683,6.6e-07,29355.0,29354.0,4.13760556]
[1609519941090,6.6e-07,29355.0,29354.0,4.21907408]
[1609519941485,6.6e-07,29355.0,29354.0,4.13760556]
[1609519942087,6.6e-07,29355.0,29354.0,3.93760556]
[1609519943118,0.00113941,29355.0,29354.0,3.93760556]
[1609519943417,0.00113941,29355.0,29354.0,7.83760556]
[1609519943615,0.00113941,29355.0,29354.0,6.83760556]
[1609519944616,0.00113941,29355.0,29354.0,7.83760556]
[1609519946419,0.00113941,29355.0,29354.0,2.63300006]
[1609519947018,0.00113941,29355.0,29354.0,3.63300006]
[1609519947417,0.00113941,29355.0,29354.0,7.18300006]
[1609519947616,0.00113941,29355.0,29354.0,6.18300006]
[1609519949563,0.00113941,29355.0,29354.0,7.18300006]
[1609519951358,0.00113941,29355.0,29354.0,7.13703312]
[1609519954251,0.00113941,29355.0,29354.0,4.33703312]
[1609519954854,0.0008,29366.0,29354.0,4.33703312]
[1609519954855,0.4691403,29368.0,29356.0,0.56577114]
[1609519955053,0.4691403,29368.0,29357.0,0.08]
[1609519955258,0.4691403,29368.0,29358.0,0.587003]
[1609519955653,0.4141403,29368.0,29359.0,0.03346812]
[1609519955876,0.4141403,29368.0,29360.0,0.364765]
[1609519956076,0.4141403,29368.0,29361.0,0.102238]
[1609519956275,0.4141403,29368.0,29362.0,0.364765]
[1609519956475,0.29061753,29373.0,29362.0,0.364765]
[1609519956780,0.0006,29369.0,29364.0,0.364765]
[1609519956979,0.0006,29369.0,29366.0,0.364765]
[1609519957372,0.0006,29369.0,29365.0,0.207238]
[1609519957576,0.0006,29369.0,29366.0,0.364765]
[1609519957776,0.0006,29369.0,29365.0,0.207238]
[1609519958379,0.364765,29368.0,29365.0,0.022238]
[1609519958586,0.0006,29369.0,29366.0,0.08]
[1609519958776,0.00029327,29368.0,29366.0,0.08]
[1609519959374,0.364765,29368.0,29366.0,0.08]
[1609519959577,0.00089327,29369.0,29366.0,0.08]
[1609519959782,0.00089327,29369.0,29366.0,0.075]
[1609519963395,0.364765,29368.0,29366.0,0.075]
[1609519963595,0.36505827,29368.0,29366.0,0.075]
[1609519963796,0.00029327,29368.0,29366.0,0.075]
[1609519964002,0.364765,29367.0,29366.0,0.075]
[1609519964399,0.364765,29367.0,29365.0,0.075]
[1609519964595,0.364765,29367.0,29363.0,0.7291]
[1609519964797,0.00102308,29367.0,29363.0,0.7291]
[1609519965396,0.00102308,29367.0,29363.0,0.751338]
[1609519965803,0.00102308,29367.0,29363.0,0.7291]
[1609519966004,0.364765,29366.0,29363.0,0.7291]
[1609519966202,0.36505827,29366.0,29363.0,0.7291]
[1609519967327,0.00029327,29366.0,29363.0,0.7291]
[1609519967525,0.51112308,29367.0,29364.0,0.364765]
[1609519968529,0.00102308,29367.0,29366.0,0.075]
[1609519968982,0.36578808,29367.0,29366.0,0.075]
[1609519970981,0.00102308,29367.0,29366.0,1.689765]
[1609519971381,0.00102308,29367.0,29366.0,0.679765]
[1609519971689,0.50701635,29369.0,29366.0,0.439765]
[1609519972391,0.0006,29370.0,29368.0,0.439765]
[1609519974804,0.00088714,29370.0,29368.0,0.439765]
[1609519975103,0.00088714,29370.0,29368.0,0.389765]
[1609519975507,0.00088714,29370.0,29368.0,0.075]
[1609519975711,0.00089955,29369.0,29368.0,0.075]
[1609519976004,0.00089955,29369.0,29368.0,0.439478]
[1609519977509,0.00049955,29369.0,29368.0,6.389478]
[1609519977713,0.00049955,29369.0,29368.0,6.349478]
[1609519978334,0.00049955,29369.0,29368.0,1.399478]
[1609519978539,0.00049955,29369.0,29368.0,0.439478]
[1609519981979,0.00049955,29369.0,29368.0,2.868106]
[1609519982177,0.00049955,29369.0,29368.0,3.338106]
[1609519982366,0.00049955,29369.0,29368.0,3.37157412]
[1609519982568,0.00049955,29369.0,29368.0,3.338106]
[1609519982764,0.00049955,29369.0,29368.0,3.36666772]
[1609519983064,0.00049955,29369.0,29368.0,4.06666772]
[1609519983467,0.00049955,29369.0,29368.0,2.36666772]
[1609519983869,0.00049955,29369.0,29368.0,1.0831996]
[1609519984107,0.00049955,29369.0,29368.0,0.6131996]
[1609519984305,0.00049955,29369.0,29368.0,0.4345716]
[1609519985311,0.00049955,29369.0,29368.0,0.47704008]
[1609519985611,0.00049955,29369.0,29368.0,0.64704008]
[1609519985808,0.00049955,29369.0,29368.0,1.99704008]
[1609519986307,0.00049955,29369.0,29368.0,2.01927808]
[1609519986507,0.00084955,29369.0,29368.0,2.01927808]
[1609519986706,0.00084955,29369.0,29368.0,1.99704008]
[1609519987205,0.00084955,29369.0,29368.0,0.64704008]
[1609519987605,0.00084955,29369.0,29368.0,1.64704008]
[1609519987809,0.00084955,29369.0,29368.0,2.59704008]
[1609519988011,0.00084955,29369.0,29368.0,2.61927808]
[1609519988206,0.00084955,29369.0,29368.0,2.59704008]
[1609519988814,0.00084955,29369.0,29368.0,2.5545716]
[1609519989017,0.00084955,29369.0,29368.0,0.64696203]
[1609519989925,0.00084955,29369.0,29368.0,1.39696203]
[1609519990827,0.00084955,29369.0,29368.0,2.34696203]
[1609519991028,0.00084955,29369.0,29368.0,1.41920003]
[1609519991931,0.00084955,29369.0,29368.0,2.46920003]
[1609519993232,0.00084955,29369.0,29368.0,0.6268096]
[1609519993536,0.00084955,29369.0,29368.0,0.6045716]
[1609519993937,0.00084955,29369.0,29368.0,0.6469188]
[1609519994335,0.00084955,29369.0,29368.0,0.6268096]
[1609519994536,0.00084955,29369.0,29368.0,0.4568096]
[1609519994731,0.00084955,29369.0,29368.0,1.5068096]
[1609519995377,0.00084955,29369.0,29368.0,1.90413114]
[1609519996808,0.00049955,29369.0,29368.0,1.90413114]
[1609519997406,0.00258655,29369.0,29368.0,1.90413114]
[1609519997805,0.00258655,29369.0,29368.0,3.48101255]
[1609519998119,0.00258655,29369.0,29368.0,3.45877455]
[1609519999158,0.00258655,29369.0,29368.0,3.41645301]
[1609520000758,0.00258655,29369.0,29368.0,3.45994334]
[1609520003654,0.00258655,29369.0,29368.0,3.10494334]
[1609520003862,0.50927369,29371.0,29368.0,3.10494334]
[1609520004059,0.00028714,29370.0,29368.0,3.10494334]
[1609520004677,0.50927369,29371.0,29368.0,3.03484974]
[1609520004873,0.50927369,29371.0,29368.0,2.67037174]
[1609520004874,0.364478,29370.0,29368.0,2.67037174]
[1609520005676,0.67865369,29371.0,29369.0,0.364478]
[1609520005973,0.56166369,29371.0,29369.0,0.364478]
[1609520006171,0.65427369,29371.0,29369.0,0.364478]
[1609520006371,0.50927369,29371.0,29368.0,2.67037174]
[1609520006571,0.50927369,29371.0,29369.0,0.386716]
[1609520006769,0.50927369,29371.0,29369.0,0.364478]
[1609520006971,0.50927369,29371.0,29368.0,2.67037174]
[1609520007871,0.50955488,29371.0,29369.0,0.00160479]
[1609520008371,0.50955488,29371.0,29370.0,0.364478]
[1609520008569,0.50427369,29371.0,29370.0,0.364478]
[1609520009074,0.50327369,29371.0,29369.0,0.02384279]
[1609520009273,0.50355488,29371.0,29369.0,0.02384279]
[1609520009470,0.50355488,29371.0,29370.0,0.364478]
[1609520009678,0.50327369,29371.0,29370.0,0.364478]
[1609520009885,0.50327369,29371.0,29370.0,0.04141751]
[1609520010186,0.28588119,29372.0,29370.0,2.06571911]
[1609520010415,0.00088119,29372.0,29371.0,5.134478]
[1609520010602,0.0006,29372.0,29371.0,6.134478]
[1609520010808,0.0006,29372.0,29371.0,0.72589155]
[1609520011646,0.0006,29372.0,29371.0,0.79598515]
[1609520013461,0.26223576,29375.0,29372.0,1.764478]
[1609520013652,0.26223576,29375.0,29372.0,0.386716]
[1609520013858,0.24723576,29375.0,29372.0,0.386716]
[1609520014123,0.0004,29375.0,29372.0,0.364478]
[1609520014514,0.0004,29375.0,29373.0,0.0700936]
[1609520014715,0.0004,29375.0,29374.0,0.364478]
[1609520014914,0.0004,29375.0,29373.0,0.0700936]
[1609520015219,0.0004,29375.0,29374.0,0.364478]
[1609520015518,0.0004,29375.0,29374.0,0.4345716]
[1609520016013,0.0004,29375.0,29374.0,0.4295716]
[1609520016417,0.0004,29375.0,29374.0,0.6699516]
[1609520016621,0.0004,29375.0,29374.0,2.8149516]
[1609520017937,0.0004,29375.0,29374.0,2.85636025]
[1609520018330,0.0004,29375.0,29374.0,2.85796477]
[1609520018633,0.0004,29375.0,29374.0,0.85796477]
[1609520019341,0.6504,29375.0,29374.0,0.60758477]
[1609520019738,1.014878,29375.0,29374.0,0.25650225]
[1609520019942,1.149878,29375.0,29374.0,0.04140865]
[1609520020149,1.149878,29375.0,29370.0,0.71711088]
[1609520020150,0.21552,29374.0,29370.0,0.71711088]
[1609520020341,0.21579548,29374.0,29370.0,0.71711088]
[1609520020541,0.364433,29372.0,29370.0,0.71711088]
[1609520020747,0.364433,29372.0,29371.0,0.04141155]
[1609520021046,0.21584048,29372.0,29371.0,0.04141155]
[1609520021249,0.00027548,29372.0,29371.0,0.04141155]
[1609520021442,0.06265548,29373.0,29371.0,0.04141155]
[1609520021741,0.00027548,29373.0,29371.0,0.04141155]
[1609520021946,0.00027548,29374.0,29371.0,0.17641155]
[1609520022438,0.00027548,29374.0,29372.0,0.04141116]
[1609520022635,0.364433,29373.0,29372.0,0.04141116]
[1609520023469,0.364433,29373.0,29371.0,0.04141047]
[1609520023776,0.00027548,29373.0,29372.0,0.0700936]
[1609520023973,0.00027548,29373.0,29371.0,0.04141047]
[1609520024176,0.21027548,29374.0,29371.0,0.04141047]
[1609520024370,0.364433,29373.0,29371.0,0.04141047]
[1609520025475,0.00027548,29374.0,29371.0,0.06364847]
[1609520025678,0.00027548,29374.0,29371.0,0.13374207]
[1609520025873,0.00027548,29374.0,29372.0,0.04140969]
[1609520026080,0.364433,29373.0,29372.0,0.04140969]
[1609520026685,1.16057548,29375.0,29372.0,0.04140969]
[1609520026686,0.00027548,29374.0,29372.0,0.04140969]
[1609520026985,0.00027548,29374.0,29372.0,0.03640969]
[1609520027184,0.65067548,29375.0,29372.0,0.03640969]
[1609520027385,0.65067548,29375.0,29373.0,0.0700936]
[1609520027582,0.364433,29374.0,29373.0,0.0700936]
[1609520028382,0.364433,29374.0,29373.0,0.0923316]
[1609520028993,0.65067548,29375.0,29373.0,0.0923316]
[1609520029217,0.205,29374.0,29373.0,0.0923316]
[1609520029520,0.65067548,29375.0,29373.0,0.0700936]
[1609520029722,0.00035611,29374.0,29373.0,0.0700936]
[1609520030614,0.00035611,29374.0,29373.0,0.4345266]
[1609520031317,0.00035611,29374.0,29373.0,0.47593613]
[1609520032017,0.00035611,29374.0,29373.0,0.4345266]
[1609520032222,0.00035611,29374.0,29373.0,0.47593566]
[1609520032416,0.13535611,29374.0,29373.0,0.47593566]
[1609520032621,0.13535611,29374.0,29373.0,0.11150266]
[1609520032819,0.49978911,29374.0,29373.0,0.11150266]
[1609520033723,0.215565,29373.0,29371.0,0.0700936]
[1609520033925,0.215565,29373.0,29372.0,0.04140966]
[1609520034948,0.215565,29373.0,29371.0,0.04140958]
[1609520035148,0.21584048,29373.0,29371.0,0.04140958]
[1609520035355,0.00027548,29373.0,29372.0,0.04141084]
[1609520035555,0.36470848,29373.0,29371.0,0.11150452]
[1609520035750,0.364433,29373.0,29371.0,0.11150452]
[1609520035949,0.364433,29373.0,29372.0,0.04141104]
[1609520036147,0.442195,29373.0,29372.0,0.04141104]
[1609520036348,0.612195,29373.0,29372.0,0.04141104]
[1609520036559,0.17,29373.0,29372.0,0.364433]
[1609520036753,0.17,29373.0,29372.0,0.40584441]
[1609520037350,0.00063159,29374.0,29372.0,0.40584441]
[1609520038348,0.00063159,29374.0,29372.0,0.364433]
[1609520038657,0.00063159,29374.0,29371.0,0.0700936]
[1609520038850,0.364433,29373.0,29371.0,0.0700936]
[1609520039156,0.36470848,29373.0,29372.0,0.04141092]
[1609520039552,0.364433,29373.0,29372.0,0.04141092]
[1609520039855,0.514433,29373.0,29372.0,0.04141092]
[1609520040974,0.514433,29373.0,29372.0,6.04141092]
[1609520041173,0.15,29373.0,29372.0,6.04141092]
[1609520041383,0.00063159,29374.0,29372.0,6.04141092]
[1609520041632,0.364433,29373.0,29372.0,6.0]
[1609520041834,0.00063159,29374.0,29372.0,6.04451105]
[1609520042030,0.00063159,29374.0,29372.0,6.41451105]
[1609520042336,0.00063159,29374.0,29373.0,0.40894385]
[1609520042541,0.00035611,29374.0,29373.0,0.14451085]
[1609520042731,0.00035611,29374.0,29373.0,0.32451085]
[1609520042732,0.36478911,29374.0,29373.0,0.32451085]
[1609520044032,0.35478911,29374.0,29373.0,0.04451085]
[1609520046494,0.43255111,29374.0,29373.0,0.04451085]
[1609520046692,0.43255111,29374.0,29372.0,6.08097932]
[1609520046900,0.43282659,29374.0,29373.0,0.04457853]
[1609520047293,0.61282659,29374.0,29373.0,0.04457853]
[1609520047499,0.61255111,29374.0,29373.0,0.04457853]
[1609520048619,0.43255111,29374.0,29373.0,0.04457853]
[1609520049619,0.43255111,29374.0,29373.0,0.12568426]
[1609520050617,0.34478911,29374.0,29373.0,0.12568426]
[1609520050820,0.3451007,29374.0,29373.0,0.12568426]
[1609520051122,0.4228627,29374.0,29373.0,0.12568426]
[1609520051526,0.3451007,29374.0,29373.0,0.37568426]
[1609520052119,0.00031159,29374.0,29373.0,0.37568426]
[1609520052523,0.00031159,29374.0,29373.0,0.74012526]
[1609520052727,0.00031159,29374.0,29373.0,0.64012526]
[1609520052929,0.00031159,29374.0,29373.0,0.27568426]
[1609520053225,0.36475259,29374.0,29373.0,0.27568426]
[1609520053425,0.36475259,29374.0,29373.0,0.37568426]
[1609520053663,0.705811,29378.0,29373.0,0.37568426]
[1609520053855,0.705811,29378.0,29373.0,0.27568426]
[1609520054156,0.705811,29378.0,29374.0,0.14463152]
[1609520054453,0.705811,29378.0,29375.0,0.04461715]
[1609520055054,0.705811,29378.0,29375.0,0.03961715]